bitfinex-derivatives/quotes_SOLF0:USTF0_20250321
["timestamp","ask_amount","ask_price","bid_price","bid_amount"]
[1742598851254,7.7932,128.37,128.35,7.7937]
[1742598851655,7.84547221,128.37,128.35,7.85130347]
[1742598852755,7.84547221,128.37,128.35,0.05760347]
[1742598857360,7.84547221,128.37,128.35,7.85160347]
[1742598857657,7.7935,128.36,128.35,0.05760347]
[1742598861258,7.7935,128.36,128.35,7.85170347]
[1742598861457,0.05227221,128.37,128.35,11.51209463]
[1742598861659,0.05227221,128.37,128.36,11.45449116]
[1742598861858,0.05227221,128.37,128.36,19.24799116]
[1742598879576,4.0291,128.43,128.4,7.7908]
[1742598879774,4.0291,128.43,128.41,38.83449116]
[1742598879969,1.9818,128.43,128.42,7.7899]
[1742598880176,1.9818,128.43,128.41,38.83449116]
[1742598880676,1.9818,128.43,128.41,38.89033337]
[1742598881576,1.9818,128.43,128.41,46.68053337]
[1742598881779,1.9818,128.43,128.41,38.89033337]
[1742598882982,1.9818,128.43,128.41,46.68053337]
[1742598884878,1.9818,128.43,128.42,7.7899]
[1742598888883,1.9818,128.43,128.41,46.68043337]
[1742598889084,9.7713,128.43,128.41,46.68043337]
[1742598889280,9.7713,128.43,128.41,38.89033337]
[1742598890184,7.7899,128.42,128.41,27.43584221]
[1742598891481,7.7899,128.42,128.41,0.05584221]
[1742598891682,7.7915,128.4,128.39,27.38]
[1742598891882,11.45449116,128.42,128.37,46.62719116]
[1742598892186,38.83449116,128.42,128.37,46.62719116]
[1742598892385,7.792,128.39,128.37,46.62719116]
[1742598892881,7.85129886,128.39,128.37,27.43152881]
[1742598893685,0.05929886,128.39,128.37,38.88601997]
[1742598894479,0.05929886,128.39,128.38,7.7923]
[1742598895281,0.05929886,128.39,128.37,46.67861997]
[1742598897791,0.05929886,128.39,128.38,7.7923]
[1742598900297,7.85139886,128.39,128.37,38.88601997]
[1742598901493,7.7923,128.38,128.37,0.05152881]
[1742598903090,7.85119886,128.39,128.37,0.05152881]
[1742598903498,7.85119886,128.39,128.37,11.50601997]
[1742598903995,7.85119886,128.39,128.37,19.29861997]
[1742598904997,7.85119886,128.39,128.37,11.50601997]
[1742598905199,7.7923,128.38,128.37,11.50601997]
[1742598905397,7.7923,128.38,128.37,0.05152881]
[1742598906096,7.85129886,128.39,128.37,0.05152881]
[1742598908992,7.7923,128.38,128.37,0.05152881]
[1742598909198,0.05929886,128.39,128.37,0.05152881]
[1742598909502,7.85139886,128.39,128.37,0.05152881]
[1742598911297,19.24679116,128.38,128.37,0.05152881]
[1742598911502,13.54099116,128.38,128.35,257.1]
[1742598912603,7.7935,128.36,128.35,257.1572103]
[1742598913703,7.7935,128.36,128.35,0.0572103]
[1742598914407,46.62799116,128.36,128.35,0.0572103]
[1742598914807,7.7958,128.33,128.31,11.45449116]
[1742598915005,38.83449116,128.36,128.31,11.45449116]
[1742598915804,7.7958,128.33,128.31,11.45449116]
[1742598915996,7.7958,128.33,128.32,0.05685182]
[1742598917104,7.795,128.34,128.32,0.05685182]
[1742598917304,0.05873476,128.35,128.32,11.51134298]
[1742598917504,0.05873476,128.35,128.33,7.7949]
[1742598918105,7.85313476,128.35,128.33,7.7949]
[1742598919812,7.85313476,128.35,128.32,19.30694298]
[1742598920008,7.7949,128.34,128.32,19.30694298]
[1742598922514,7.85313476,128.35,128.33,7.7953]
[1742598924317,7.85313476,128.35,128.32,19.30684298]
[1742598925716,7.85313476,128.35,128.33,7.7953]
[1742598927421,0.05873476,128.35,128.32,38.89134298]
[1742598927613,11.51322592,128.35,128.32,27.43685182]
[1742598927814,11.51322592,128.35,128.32,0.05685182]
[1742598928010,7.7953,128.33,128.32,0.05685182]
[1742598929620,11.45449116,128.34,128.32,0.05685182]
[1742598929621,7.795,128.34,128.32,0.05685182]
[1742598931014,0.05873476,128.35,128.32,11.51134298]
[1742598931222,0.05873476,128.35,128.33,11.45449116]
[1742598931619,0.05873476,128.35,128.33,19.24939116]
[1742598932621,0.05873476,128.35,128.32,11.51134298]
[1742598932821,11.51322592,128.35,128.32,0.05685182]
[1742598933723,7.85313476,128.35,128.32,0.05685182]
[1742598934024,0.05873476,128.35,128.32,0.05685182]
[1742598934225,7.85323476,128.35,128.32,7.85245182]
[1742598934726,0.05873476,128.35,128.32,7.85245182]
[1742598935827,7.85323476,128.35,128.32,7.85245182]
[1742598936028,0.05873476,128.35,128.32,7.85245182]
[1742598936521,7.795,128.34,128.32,0.05685182]
[1742598937230,7.795,128.34,128.32,7.85245182]
[1742598937827,7.85323476,128.35,128.32,7.85245182]
[1742598938531,7.7947,128.34,128.32,7.85245182]
[1742598941631,7.7947,128.34,128.32,0.05685182]
[1742598941934,7.7953,128.33,128.32,0.05685182]
[1742598945231,19.24979116,128.33,128.32,0.05685182]
[1742598945631,7.7953,128.33,128.32,0.05685182]
[1742598948636,27.38,128.34,128.32,0.05685182]
[1742598948830,0.05873476,128.35,128.32,11.51134298]
[1742598949323,7.85293476,128.35,128.33,7.795]
[1742598954543,7.7947,128.34,128.32,7.85245182]
[1742598955039,0.05873476,128.35,128.32,7.85245182]
[1742598955236,7.85313476,128.35,128.32,7.85245182]
[1742598956543,7.85313476,128.35,128.33,7.7952]
[1742598958043,7.85313476,128.35,128.32,7.85245182]
[1742598959246,7.7953,128.33,128.32,0.05685182]
[1742598959446,42.61650365,128.33,128.26,11.45449116]
[1742598959639,11.45449116,128.32,128.26,11.45449116]
[1742598959846,7.7972,128.3,128.26,19.25379116]
[1742598960145,11.45449116,128.32,128.25,288.6928]
[1742598960344,26.69099481,128.32,128.25,288.6928]
[1742598960552,7.84955603,128.3,128.27,0.04959479]
[1742598962141,7.7979,128.29,128.27,0.04959479]
[1742598962346,0.05205603,128.3,128.27,0.04959479]
[1742598962745,7.798,128.29,128.27,0.04959479]
[1742598962951,0.05205603,128.3,128.27,0.04959479]
[1742598965054,7.7984,128.28,128.27,0.04959479]
[1742598977858,19.25239116,128.29,128.27,0.04959479]
[1742598979462,7.7984,128.28,128.27,0.04959479]
[1742598980662,19.25259116,128.29,128.27,0.04959479]
[1742598980862,7.7981,128.29,128.27,0.04959479]
[1742598981964,0.05205603,128.3,128.27,11.50408595]
[1742598982163,0.05205603,128.3,128.27,38.90408595]
[1742598982368,0.05205603,128.3,128.28,7.798]
[1742598983266,7.84925603,128.3,128.28,7.798]
[1742598984861,0.05205603,128.3,128.28,7.798]
[1742598986072,7.84925603,128.3,128.28,7.798]
[1742598986568,0.05205603,128.3,128.28,7.798]
[1742598987369,0.05205603,128.3,128.29,19.25229116]
[1742598991372,0.05205603,128.3,128.29,46.63229116]
[1742599011393,7.84915603,128.3,128.29,27.38]
[1742599011592,7.84915603,128.3,128.28,264.998]
[1742599015391,7.84915603,128.3,128.28,292.378]
[1742599016592,0.05205603,128.3,128.29,7.7978]
[1742599018899,0.05205603,128.3,128.28,303.83249116]
[1742599019498,0.05205603,128.3,128.29,7.7978]
[1742599021102,0.05205603,128.3,128.28,303.83249116]
[1742599022102,7.84935603,128.3,128.28,303.83249116]
[1742599022302,0.05205603,128.3,128.28,284.58]
[1742599022505,0.05205603,128.3,128.28,257.2]
[1742599022696,7.7978,128.29,128.28,257.2]
[1742599023404,11.45449116,128.29,128.23,268.67449116]
[1742599023596,11.45449116,128.28,128.24,27.38]
[1742599023895,11.45449116,128.27,128.23,268.67449116]
[1742599024703,7.8002,128.25,128.24,0.05880358]
[1742599025604,7.85265517,128.26,128.24,0.05880358]
[1742599026104,0.05275517,128.26,128.24,0.05880358]
[1742599026400,7.8002,128.25,128.24,0.05880358]
[1742599027408,7.85265517,128.26,128.24,0.05880358]
[1742599028594,0.05275517,128.26,128.24,0.05880358]
[1742599030305,0.05275517,128.26,128.24,7.85940358]
[1742599033304,0.05275517,128.26,128.25,7.8002]
[1742599033506,0.05275517,128.26,128.25,19.25469116]
[1742599033809,0.05275517,128.26,128.25,46.63469116]
[1742599034408,2.0188,128.31,128.29,7.7973]
[1742599034603,70.51096417,128.32,128.28,11.45449116]
[1742599034807,43.13096417,128.32,128.29,11.45449116]
[1742599035011,43.13096417,128.32,128.31,7.7965]
[1742599035807,0.05050807,128.33,128.31,7.7965]
[1742599036410,7.84590807,128.33,128.31,7.7965]
[1742599036611,19.30039923,128.33,128.3,7.84645715]
[1742599040006,11.45449116,128.32,128.3,0.04965715]
[1742599041512,11.45449116,128.32,128.3,7.84675715]
[1742599043915,11.50499923,128.33,128.31,7.7965]
[1742599046008,0.05050807,128.33,128.31,7.7965]
[1742599049519,7.84590807,128.33,128.3,7.84645715]
[1742599049714,11.45449116,128.32,128.3,0.04965715]
[1742599050116,7.7965,128.31,128.3,0.04965715]
[1742599050717,11.45449116,128.32,128.3,0.04965715]
[1742599051424,11.45449116,128.32,128.3,7.84645715]
[1742599053429,0.05050807,128.33,128.32,7.7959]
[1742599057822,0.05050807,128.33,128.31,19.25069116]
[1742599058118,0.05050807,128.33,128.31,7.7962]
[1742599058523,0.05050807,128.33,128.32,7.7959]
[1742599059823,7.84610807,128.33,128.31,7.7963]
[1742599060531,7.84610807,128.33,128.3,46.68094831]
[1742599060731,7.7962,128.32,128.3,0.04965715]
[1742599060927,11.50499923,128.33,128.3,0.04965715]
[1742599061323,7.7965,128.31,128.3,0.04965715]
[1742599062027,19.25099116,128.31,128.3,0.04965715]
[1742599067532,46.63099116,128.31,128.3,0.04965715]
[1742599067834,7.7989,128.28,128.26,27.38]
[1742599068036,7.7989,128.28,128.25,276.45449116]
[1742599068632,7.7981,128.29,128.25,268.65449116]
[1742599068831,0.05265234,128.28,128.25,268.70527456]
[1742599069236,7.85105234,128.28,128.26,7.7993]
[1742599071233,7.7991,128.27,128.25,265.0507834]
[1742599071434,0.05265234,128.28,128.25,265.0507834]
[1742599072235,0.05265234,128.28,128.26,7.7995]
[1742599072537,0.05265234,128.28,128.25,296.08527456]
[1742599072834,0.05265234,128.28,128.26,7.7996]
[1742599073035,0.05265234,128.28,128.25,296.08527456]
[1742599073336,0.05265234,128.28,128.26,7.7996]
[1742599076737,0.05265234,128.28,128.25,296.08527456]
[1742599077238,0.05265234,128.28,128.26,7.799]
[1742599077736,0.05265234,128.28,128.25,296.08527456]
[1742599078636,0.05265234,128.28,128.26,7.7996]
[1742599080642,0.05265234,128.28,128.27,7.799]
[1742599080837,0.05265234,128.28,128.27,19.25349116]
[1742599086447,0.05265234,128.28,128.27,7.799]
[1742599090750,0.05265234,128.28,128.26,7.7994]
[1742599094551,0.05265234,128.28,128.27,19.25349116]
[1742599095355,0.05265234,128.28,128.27,46.63349116]
[1742599096750,70.51096417,128.34,128.31,7.7964]
[1742599097656,7.7957,128.33,128.31,7.7964]
[1742599097858,43.18607087,128.34,128.31,11.50529284]
[1742599098561,0.0551067,128.34,128.33,7.7953]
[1742599101655,0.0551067,128.34,128.33,19.24979116]
[1742599102460,0.0551067,128.34,128.33,7.7953]
[1742599102964,0.0551067,128.34,128.32,46.63009116]
[1742599104465,0.0551067,128.34,128.33,7.7953]
[1742599106059,0.0551067,128.34,128.32,38.83449116]
[1742599106263,0.0551067,128.34,128.32,27.38]
[1742599106765,7.8501067,128.34,128.32,27.38]
[1742599107667,0.0551067,128.34,128.32,35.1759]
[1742599109771,7.8498067,128.34,128.32,35.1759]
[1742599110469,0.0551067,128.34,128.32,35.1759]
[1742599110668,0.0551067,128.34,128.33,7.7953]
[1742599111567,7.8499067,128.34,128.32,35.1756]
[1742599112271,0.0551067,128.34,128.33,7.7953]
[1742599112673,0.0551067,128.34,128.32,27.38]
[1742599112868,7.8501067,128.34,128.32,27.38]
[1742599113875,7.8501067,128.34,128.32,35.1757]
[1742599114275,7.7953,128.33,128.32,27.38]
[1742599117279,7.7959,128.32,128.31,257.29080168]
[1742599117475,19.25039116,128.32,128.31,257.29080168]
[1742599117677,38.81449116,128.32,128.26,295.95449116]
[1742599117976,7.7974,128.3,128.27,11.45449116]
[1742599118776,7.85654489,128.3,128.27,19.30347824]
[1742599119678,7.7979,128.29,128.27,19.30347824]
[1742599119977,7.7979,128.29,128.27,11.50507824]
[1742599121578,7.7979,128.29,128.27,19.30367824]
[1742599122074,7.85644489,128.3,128.28,7.7984]
[1742599122474,0.05914489,128.3,128.29,11.45449116]
[1742599122779,0.05914489,128.3,128.29,19.25229116]
[1742599127785,0.05914489,128.3,128.29,276.43229116]
[1742599141594,4.489e-05,128.3,128.29,276.43229116]
[1742599141790,2.0632,128.37,128.29,268.63449116]
[1742599141991,10.78274104,128.38,128.34,11.45449116]
[1742599142288,18.57524104,128.38,128.35,7.7938]
[1742599142487,10.78274104,128.38,128.35,11.45449116]
[1742599142892,10.8331353,128.38,128.36,7.7932]
[1742599144393,0.05039426,128.38,128.37,7.7929]
[1742599147396,0.05039426,128.38,128.36,19.24769116]
[1742599150001,0.05039426,128.38,128.37,7.7929]
[1742599151906,0.05039426,128.38,128.36,19.24769116]
[1742599152104,7.84279426,128.38,128.37,11.45449116]
[1742599152311,7.84279426,128.38,128.36,19.24769116]
[1742599152511,0.05039426,128.38,128.37,7.7929]
[1742599154003,0.05039426,128.38,128.37,46.58739116]
[1742599161705,7.84269426,128.38,128.37,27.34]
[1742599163906,0.05039426,128.38,128.37,35.1329]
[1742599164209,0.05039426,128.38,128.37,46.58739116]
[1742599167815,7.84269426,128.38,128.37,46.58739116]
[1742599168514,0.05039426,128.38,128.37,46.58739116]
[1742599179422,31.4243,128.43,128.39,7.7914]
[1742599179929,31.4243,128.43,128.4,7.7907]
[1742599180439,7.7905,128.41,128.38,19.24669116]
[1742599180727,7.7905,128.41,128.4,0.05528911]
[1742599191133,19.24499116,128.41,128.4,0.05528911]
[1742599199944,7.7935,128.36,128.35,295.81449116]
[1742599200240,7.7935,128.36,128.35,257.02]
[1742599200937,7.7953,128.34,128.32,27.34]
[1742599201347,7.7953,128.34,128.32,0.05107244]
[1742599201540,7.8452181,128.34,128.32,0.05107244]
[1742599201740,0.0499181,128.34,128.32,11.5055636]
[1742599201936,0.0499181,128.34,128.33,11.45449116]
[1742599202343,0.0499181,128.34,128.33,19.24979116]
[1742599204246,0.0499181,128.34,128.33,46.58979116]
[1742599205349,7.8446181,128.34,128.33,38.79449116]
[1742599205649,0.0499181,128.34,128.33,38.79449116]
[1742599205844,0.0499181,128.34,128.33,46.58979116]
[1742599208253,7.8446181,128.34,128.32,19.3011636]
[1742599208454,11.50440926,128.34,128.32,0.05107244]
[1742599208650,11.45449116,128.33,128.32,0.05107244]
[1742599208848,19.24979116,128.33,128.32,0.05107244]
[1742599210755,46.58979116,128.33,128.32,0.05107244]
[1742599213162,46.58979116,128.33,128.32,7.244e-05]
[1742599217562,39.2129181,128.34,128.32,7.244e-05]
[1742599217964,50.66740926,128.34,128.32,7.244e-05]
[1742599220262,23.32740926,128.34,128.32,7.244e-05]
[1742599226665,21.27950926,128.34,128.32,7.244e-05]
[1742599229771,7.7953,128.33,128.32,7.244e-05]
[1742599230172,13.48460926,128.34,128.32,7.244e-05]
[1742599230366,21.27970926,128.34,128.32,7.244e-05]
[1742599234275,0.0499181,128.34,128.33,7.7953]
[1742599234675,0.0499181,128.34,128.32,7.79577244]
[1742599234871,0.0499181,128.34,128.32,7.244e-05]
[1742599235373,7.8449181,128.34,128.32,7.244e-05]
[1742599236367,0.0499181,128.34,128.32,7.244e-05]
[1742599236569,0.0499181,128.34,128.32,7.79577244]
[1742599236770,0.0499181,128.34,128.32,7.244e-05]
[1742599237572,0.0499181,128.34,128.33,7.7953]
[1742599238878,0.0499181,128.34,128.33,35.1353]
[1742599239178,0.0499181,128.34,128.33,46.58979116]
[1742599246084,42.94109116,128.4,128.37,7.7924]
[1742599246583,7.7919,128.39,128.37,7.7924]
[1742599247286,7.84646979,128.39,128.37,7.85047507]
[1742599248287,0.05456979,128.39,128.37,7.85047507]
[1742599248486,0.05456979,128.39,128.38,7.7923]
[1742599248993,0.05456979,128.39,128.38,19.24679116]
[1742599257195,4.0994,128.46,128.41,7.7904]
[1742599257397,42.89389116,128.46,128.41,19.24489116]
[1742599257599,7.7893,128.43,128.41,19.24489116]
[1742599257902,2.1639,128.48,128.42,19.24439116]
[1742599258098,40.95839116,128.48,128.43,11.45449116]
[1742599258296,13.61839116,128.48,128.43,11.45449116]
[1742599258501,0.05890361,128.47,128.44,0.05542257]
[1742599259302,7.7877,128.46,128.44,0.05542257]
[1742599259505,7.7877,128.46,128.44,19.29851373]
[1742599259700,7.84610361,128.47,128.44,19.29851373]
[1742599260202,0.05890361,128.47,128.44,11.50991373]
[1742599260401,7.7877,128.46,128.44,11.50991373]
[1742599261210,7.7877,128.46,128.44,19.29841373]
[1742599261512,11.51339477,128.47,128.44,0.05542257]
[1742599262009,7.788,128.45,128.44,0.05542257]
[1742599278825,7.7905,128.41,128.4,257.04]
[1742599279014,38.77449116,128.42,128.37,38.77449116]
[1742599279218,11.45449116,128.41,128.37,38.77449116]
[1742599279620,7.7923,128.38,128.37,38.77449116]
[1742599279823,11.45449116,128.41,128.36,11.45449116]
[1742599280023,0.05336197,128.39,128.36,0.04965773]
[1742599280722,7.84536197,128.39,128.36,11.50414889]
[1742599281125,7.84536197,128.39,128.36,19.29744889]
[1742599286524,7.7924,128.38,128.36,19.29744889]
[1742599288328,7.7924,128.38,128.36,11.50414889]
[1742599288723,7.84536197,128.39,128.36,11.50414889]
[1742599288925,7.84536197,128.39,128.36,19.29764889]
[1742599289125,0.05336197,128.39,128.36,19.29764889]
[1742599290227,0.05336197,128.39,128.36,11.50414889]
[1742599290523,0.05336197,128.39,128.36,0.04965773]
[1742599291532,7.7929,128.37,128.36,0.04965773]
[1742599302040,7.7953,128.33,128.31,11.45449116]
[1742599302335,7.7953,128.33,128.3,268.51449116]
[1742599302537,7.7953,128.33,128.3,276.31139116]
[1742599303130,7.7953,128.33,128.3,276.36067495]
[1742599303327,7.85376872,128.33,128.3,276.36067495]
[1742599305038,7.85376872,128.33,128.3,257.10928379]
[1742599305039,11.51295988,128.33,128.3,257.10928379]
[1742599306441,7.7965,128.31,128.3,257.10928379]
[1742599307936,7.7965,128.31,128.3,0.04928379]
[1742599308240,46.59099116,128.31,128.3,0.04928379]
[1742599310329,46.59099116,128.31,128.23,4.1512]
[1742599310330,38.79449116,128.31,128.2,257.16]
[1742599310535,11.45449116,128.26,128.21,11.45449116]
[1742599311040,19.25459116,128.26,128.21,11.45449116]
[1742599311339,7.8001,128.26,128.22,11.45449116]
[1742599311537,0.05766743,128.25,128.22,11.5087881]
[1742599312539,7.85786743,128.25,128.22,11.5087881]
[1742599315042,7.8008,128.24,128.22,11.5087881]
[1742599322344,0.05766743,128.25,128.22,11.5087881]
[1742599322542,0.05766743,128.25,128.23,11.45449116]
[1742599324042,0.05766743,128.25,128.23,19.25559116]
[1742599324243,0.05766743,128.25,128.23,11.45449116]
[1742599324548,7.85836743,128.25,128.23,11.45449116]
[1742599327850,0.05766743,128.25,128.23,19.25589116]
[1742599328243,0.05766743,128.25,128.23,11.45449116]
[1742599328547,7.85816743,128.25,128.23,11.45449116]
[1742599329546,0.05766743,128.25,128.22,19.3104881]
[1742599329952,7.85816743,128.25,128.22,19.3104881]
[1742599330252,0.05766743,128.25,128.22,11.5087881]
[1742599330457,7.8014,128.24,128.22,0.05429694]
[1742599334462,7.8014,128.24,128.22,7.85629694]
[1742599335158,7.8014,128.24,128.22,0.05429694]
[1742599337866,7.8014,128.23,128.22,0.05429694]
[1742599343065,0.05766743,128.25,128.22,11.5087881]
[1742599343261,0.05766743,128.25,128.24,11.45449116]
[1742599343465,0.05766743,128.25,128.24,19.25529116]
[1742599344064,57.3947322,128.3,128.24,11.45449116]
[1742599344260,22.2372322,128.3,128.25,11.45449116]
[1742599344464,49.5972322,128.3,128.25,11.45449116]
[1742599345063,7.85254496,128.29,128.26,7.85323641]
[1742599345769,7.7984,128.28,128.26,0.05393641]
[1742599346169,11.50903612,128.29,128.26,0.05393641]
[1742599346370,19.30723612,128.29,128.26,7.85333641]
[1742599346866,7.7984,128.28,128.26,0.05393641]
[1742599349672,7.7984,128.28,128.26,7.85353641]
[1742599349871,19.30713612,128.29,128.26,7.85353641]
[1742599351972,7.7984,128.28,128.26,0.05393641]
[1742599354370,11.50903612,128.29,128.26,0.05393641]
[1742599354574,19.25349116,128.27,128.26,0.05393641]
[1742599360480,7.799,128.27,128.26,0.05393641]
[1742599360876,46.59319116,128.28,128.26,0.05393641]
[1742599361180,0.05454496,128.29,128.26,0.05393641]
[1742599361882,0.05454496,128.29,128.27,7.7985]
[1742599362978,0.05454496,128.29,128.28,19.25289116]
[1742599365085,0.05454496,128.29,128.28,7.7984]
[1742599366589,0.05454496,128.29,128.28,19.25289116]
[1742599385604,35.1351,128.34,128.32,7.7957]
[1742599385804,27.34,128.34,128.3,38.79449116]
[1742599386007,7.7954,128.33,128.3,38.79449116]
[1742599386410,13.43859116,128.35,128.3,38.79449116]
[1742599386605,11.45449116,128.34,128.3,27.34]
[1742599386803,19.30636319,128.34,128.31,0.0511368]
[1742599387403,19.30636319,128.34,128.32,7.7959]
[1742599388009,19.30636319,128.34,128.31,0.0511368]
[1742599388406,19.30636319,128.34,128.31,7.8473368]
[1742599390304,11.51146319,128.34,128.32,7.7957]
[1742599391104,0.05697203,128.34,128.33,7.7953]
[1742599392511,0.05697203,128.34,128.32,7.7956]
[1742599398514,7.85167203,128.34,128.31,7.8472368]
[1742599400513,0.05697203,128.34,128.31,0.0511368]
[1742599400724,7.7957,128.33,128.31,0.0511368]
[1742599402015,7.7959,128.32,128.31,0.0511368]
[1742599403215,7.7959,128.32,128.26,257.28]
[1742599403216,38.77449116,128.32,128.26,268.73449116]
[1742599403411,11.45449116,128.31,128.26,296.05449116]
[1742599403616,11.45449116,128.31,128.27,7.7987]
[1742599403819,7.7974,128.3,128.27,7.7987]
[1742599404421,7.85362945,128.3,128.27,7.85233216]
[1742599405322,7.7978,128.29,128.27,0.05363216]
[1742599406317,7.7978,128.29,128.27,7.85253216]
[1742599407115,7.85372945,128.3,128.27,7.85253216]
[1742599408728,7.85372945,128.3,128.27,0.05363216]
[1742599408929,11.45449116,128.29,128.27,0.05363216]
[1742599409128,11.45449116,128.28,128.22,11.45449116]
[1742599409428,7.8001,128.26,128.23,27.34]
[1742599409628,11.45449116,128.27,128.23,27.34]
[1742599410327,0.05406094,128.26,128.24,0.05809821]
[1742599410525,7.8002,128.25,128.24,0.05809821]
[1742599412028,19.25469116,128.25,128.24,0.05809821]
[1742599412223,7.8013,128.24,128.21,257.2]
[1742599412929,7.8013,128.24,128.21,265.0026]
[1742599413328,7.8013,128.24,128.21,265.0543858]
[1742599414032,19.25499116,128.25,128.21,265.0543858]
[1742599415528,7.8009,128.24,128.21,265.0543858]
[1742599415726,7.8009,128.24,128.21,257.2517858]
[1742599416225,19.25539116,128.24,128.21,257.2517858]
[1742599418833,19.25539116,128.24,128.21,265.0543858]
[1742599423731,7.8014,128.23,128.21,257.2517858]
[1742599424133,7.85547346,128.23,128.21,257.2517858]
[1742599426543,7.802,128.22,128.21,0.0517858]
[1742599427139,38.84856462,128.23,128.21,0.0517858]
[1742599427445,0.05407346,128.23,128.21,11.50627696]
[1742599427741,0.05407346,128.23,128.21,19.30847696]
[1742599428940,0.05407346,128.23,128.22,7.802]
[1742599435755,0.05407346,128.23,128.21,7.8540858]
[1742599437044,0.05407346,128.23,128.22,7.802]
[1742599441060,0.05407346,128.23,128.22,19.25649116]
[1742599441259,0.05407346,128.23,128.22,46.59649116]
[1742599442160,7.7993,128.27,128.22,46.59649116]
[1742599442161,27.34,128.28,128.26,7.7994]
[1742599442659,7.7991,128.27,128.25,7.7999]
[1742599442855,11.45449116,128.27,128.22,38.79449116]
[1742599443154,11.45449116,128.26,128.22,27.34]
[1742599443460,11.45449116,128.25,128.23,7.85083865]
[1742599444262,11.45449116,128.25,128.23,0.04973865]
[1742599445057,19.25479116,128.25,128.23,0.04973865]
[1742599446060,35.18973218,128.26,128.23,7.85073865]
[1742599448860,0.04983218,128.26,128.24,7.8004]
[1742599449464,0.04983218,128.26,128.25,7.8002]
[1742599451168,0.04983218,128.26,128.24,7.8004]
[1742599453072,0.04983218,128.26,128.25,7.8002]
[1742599453667,0.04983218,128.26,128.24,7.8002]
[1742599453864,0.04983218,128.26,128.23,11.50422981]
[1742599454565,0.04983218,128.26,128.24,38.79449116]
[1742599454766,0.04983218,128.26,128.25,7.8002]
[1742599454959,0.04983218,128.26,128.24,38.79449116]
[1742599455168,0.04983218,128.26,128.24,27.34]
[1742599455368,0.04983218,128.26,128.24,35.1404]
[1742599456268,0.04983218,128.26,128.25,7.8002]
[1742599458871,0.04983218,128.26,128.24,35.1404]
[1742599460261,7.84953218,128.26,128.24,35.1404]
[1742599460465,0.04983218,128.26,128.24,35.1404]
[1742599460667,7.8002,128.25,128.24,27.34]
[1742599460971,7.8002,128.25,128.23,0.04973865]
[1742599461459,0.04983218,128.26,128.24,11.45449116]
[1742599461661,0.04983218,128.26,128.24,38.79449116]
[1742599462264,0.04983218,128.26,128.25,7.8002]
[1742599464072,32.12194616,128.31,128.25,11.45449116]
[1742599464368,18.621155,128.31,128.28,11.45449116]
[1742599465071,10.824355,128.31,128.28,11.45449116]
[1742599465268,0.05688017,128.31,128.29,38.79449116]
[1742599465471,0.05688017,128.31,128.3,11.45449116]
[1742599465766,0.05688017,128.31,128.3,19.25159116]
[1742599466071,0.05688017,128.31,128.29,27.34]
[1742599466281,7.85348017,128.31,128.29,27.34]
[1742599467369,7.85348017,128.31,128.28,7.85037415]
[1742599468771,0.05688017,128.31,128.28,7.85037415]
[1742599468977,0.05688017,128.31,128.29,7.7977]
[1742599470077,0.05688017,128.31,128.28,7.85007415]
[1742599471682,0.05688017,128.31,128.29,7.7977]
[1742599472378,0.05688017,128.31,128.3,7.7971]
[1742599474179,0.05688017,128.31,128.29,46.57189116]
[1742599476282,0.05688017,128.31,128.29,35.1174]
[1742599485493,0.05688017,128.31,128.3,7.7971]
[1742599485690,0.05688017,128.31,128.3,19.25159116]
[1742599491391,0.05688017,128.31,128.3,7.7971]
[1742599501002,0.05688017,128.31,128.29,27.32]
[1742599501495,7.85368017,128.31,128.29,27.32]
[1742599501692,0.05688017,128.31,128.29,35.1177]
[1742599504103,0.05688017,128.31,128.3,7.7971]
[1742599507008,0.05688017,128.31,128.29,46.57189116]
[1742599511309,0.05688017,128.31,128.29,38.77449116]
[1742599511908,0.05688017,128.31,128.3,7.7971]
[1742599512106,0.05688017,128.31,128.29,38.77449116]
[1742599513012,0.05688017,128.31,128.3,7.7971]
[1742599514118,0.05688017,128.31,128.29,46.57189116]
[1742599514811,0.05688017,128.31,128.3,7.7971]
[1742599526417,0.05688017,128.31,128.29,27.32]
[1742599526618,0.05688017,128.31,128.28,0.05207415]
[1742599527126,7.85368017,128.31,128.28,7.84997415]
[1742599529218,0.05688017,128.31,128.28,0.05207415]
[1742599529421,11.51137133,128.31,128.28,0.05207415]
[1742599530118,7.7975,128.3,128.28,0.05207415]
[1742599531223,0.05688017,128.31,128.28,11.50656531]
[1742599531823,0.05688017,128.31,128.29,7.7975]
[1742599532124,0.05688017,128.31,128.28,11.50656531]
[1742599532326,7.85348017,128.31,128.28,19.30456531]
[1742599533523,7.85348017,128.31,128.29,7.7977]